[Event "BPB Limburg Open 2019 Group A"]
[Site "Maastricht, Netherlands"]
[Date "2019.06.09"]
[Round "4.7"]
[White "Monroy, Charles"]
[Black "Beerdsen, Thomas"]
[Result "1/2-1/2"]
[TimeControl "2h + 15 sec/move"]
[WhiteFideId "621641"]
[BlackFideId "1030108"]
[WhiteElo "2432"]
[BlackElo "2488"]

1. e4 {[%clk 02:00:27]} {[%emt 00:00:02]} c5 {[%clk 01:59:36]} {[%emt
00:00:54]} 2. c3 {[%clk 02:00:34]} {[%emt 00:00:08]} Nf6 {[%clk 01:58:42]}
{[%emt 00:01:09]} 3. e5 {[%clk 02:00:44]} {[%emt 00:00:06]} Nd5 {[%clk
01:58:54]} {[%emt 00:00:03]} 4. Nf3 {[%clk 02:00:48]} {[%emt 00:00:11]} Nc6
{[%clk 01:57:25]} {[%emt 00:01:43]} 5. Bc4 {[%clk 02:00:43]} {[%emt 00:00:20]}
Nb6 {[%clk 01:54:17]} {[%emt 00:03:24]} 6. Bb3 {[%clk 02:00:52]} {[%emt
00:00:06]} d5 {[%clk 01:52:37]} {[%emt 00:01:55]} 7. exd6 {[%clk 02:00:49]}
{[%emt 00:00:19]} Qxd6 {[%clk 01:50:41]} {[%emt 00:02:11]} 8. O-O {[%clk
02:00:35]} {[%emt 00:00:28]} Bf5 {[%clk 01:47:54]} {[%emt 00:03:02]} 9. d4
{[%clk 01:58:31]} {[%emt 00:02:05]} e6 {[%clk 01:42:19]} {[%emt 00:05:49]} 10.
Na3 {[%clk 01:55:04]} {[%emt 00:03:57]} cxd4 {[%clk 01:22:18]} {[%emt
00:20:16]} 11. Nb5 {[%clk 01:53:07]} {[%emt 00:02:13]} Qd7 {[%clk 01:17:10]}
{[%emt 00:05:23]} 12. Nfxd4 {[%clk 01:46:37]} {[%emt 00:06:45]} Nxd4 {[%clk
01:14:23]} {[%emt 00:03:02]} 13. Nxd4 {[%clk 01:46:34]} {[%emt 00:00:18]} Be4
{[%clk 00:58:18]} {[%emt 00:16:20]} 14. Qe2 {[%clk 01:39:20]} {[%emt 00:07:29]}
Bd5 {[%clk 00:56:25]} {[%emt 00:02:07]} 15. Rd1 {[%clk 01:39:29]} {[%emt
00:00:07]} Rc8 {[%clk 00:51:55]} {[%emt 00:04:45]} 16. Bxd5 {[%clk 01:32:18]}
{[%emt 00:07:26]} Nxd5 {[%clk 00:41:28]} {[%emt 00:10:40]} 17. c4 {[%clk
01:20:12]} {[%emt 00:12:23]} Nf6 {[%clk 00:34:23]} {[%emt 00:07:18]} 18. b3
{[%clk 01:05:36]} {[%emt 00:14:53]} b6 {[%clk 00:30:04]} {[%emt 00:04:34]} 19.
Qf3 {[%clk 00:51:04]} {[%emt 00:14:47]} Bc5 {[%clk 00:22:36]} {[%emt 00:07:43]}
20. Nf5 {[%clk 00:47:54]} {[%emt 00:03:25]} Qc6 {[%clk 00:22:28]} {[%emt
00:00:22]} 21. Nxg7+ {[%clk 00:42:37]} {[%emt 00:05:33]} Ke7 {[%clk 00:22:08]}
{[%emt 00:00:35]} 22. Qxc6 {[%clk 00:33:53]} {[%emt 00:09:00]} Rxc6 {[%clk
00:22:18]} {[%emt 00:00:04]} 23. Bg5 {[%clk 00:33:41]} {[%emt 00:00:27]} Rg8
{[%clk 00:21:07]} {[%emt 00:01:26]} 24. Bxf6+ {[%clk 00:33:42]} {[%emt
00:00:15]} Kxf6 {[%clk 00:21:17]} {[%emt 00:00:04]} 25. Nh5+ {[%clk 00:33:45]}
{[%emt 00:00:12]} Ke7 {[%clk 00:21:01]} {[%emt 00:00:31]} 26. Rd3 {[%clk
00:30:21]} {[%emt 00:03:40]} Rd6 {[%clk 00:20:11]} {[%emt 00:01:04]} 27. Rxd6
{[%clk 00:29:29]} {[%emt 00:01:08]} Bxd6 {[%clk 00:20:19]} {[%emt 00:00:07]} 28.
Rd1 {[%clk 00:29:22]} {[%emt 00:00:22]} a6 {[%clk 00:19:26]} {[%emt 00:01:09]}
29. Ng3 {[%clk 00:26:17]} {[%emt 00:03:20]} Be5 {[%clk 00:18:46]} {[%emt
00:00:54]} 30. Kf1 {[%clk 00:19:06]} {[%emt 00:07:27]} b5 {[%clk 00:16:01]}
{[%emt 00:03:00]} 31. Re1 {[%clk 00:13:23]} {[%emt 00:05:58]} f6 {[%clk
00:09:29]} {[%emt 00:06:47]} 32. Re4 {[%clk 00:12:39]} {[%emt 00:01:00]} Rd8
{[%clk 00:08:42]} {[%emt 00:01:01]} 33. cxb5 {[%clk 00:09:48]} {[%emt
00:03:07]} axb5 {[%clk 00:08:47]} {[%emt 00:00:10]} 34. Ke2 {[%clk 00:06:06]}
{[%emt 00:03:57]} Bc3 {[%clk 00:08:40]} {[%emt 00:00:22]} 35. Nf1 {[%clk
00:06:13]} {[%emt 00:00:08]} b4 {[%clk 00:08:40]} {[%emt 00:00:15]} 36. Rc4
{[%clk 00:04:31]} {[%emt 00:01:57]} Ra8 {[%clk 00:08:48]} {[%emt 00:00:07]} 37.
Rc7+ {[%clk 00:03:47]} {[%emt 00:00:59]} Kd6 {[%clk 00:08:59]} {[%emt
00:00:03]} 38. Rxh7 {[%clk 00:03:40]} {[%emt 00:00:23]} Rxa2+ {[%clk 00:09:10]}
{[%emt 00:00:04]} 39. Kd3 {[%clk 00:03:05]} {[%emt 00:00:50]} Rxf2 {[%clk
00:08:21]} {[%emt 00:01:04]} 40. Ne3 {[%clk 00:03:15]} {[%emt 00:00:05]} Rd2+
{[%clk 00:07:42]} {[%emt 00:00:54]} 41. Ke4 {[%clk 00:03:18]} {[%emt 00:00:12]}
f5+ {[%clk 00:06:49]} {[%emt 00:01:08]} 42. Kf3 {[%clk 00:03:20]} {[%emt
00:00:13]} Ra2 {[%clk 00:06:43]} {[%emt 00:00:21]} 43. Nc4+ {[%clk 00:03:09]}
{[%emt 00:00:27]} Kc6 {[%clk 00:05:23]} {[%emt 00:01:34]} 44. Re7 {[%clk
00:02:36]} {[%emt 00:00:49]} Kd5 {[%clk 00:05:05]} {[%emt 00:00:32]} 45. Rd7+
{[%clk 00:02:40]} {[%emt 00:00:12]} Kc5 {[%clk 00:05:16]} {[%emt 00:00:03]} 46.
Rc7+ {[%clk 00:02:37]} {[%emt 00:00:18]} Kd5 {[%clk 00:04:40]} {[%emt
00:00:50]} 47. Rd7+ {[%clk 00:02:49]} {[%emt 00:00:04]} Ke5 {[%emt 00:00:19]}
48. Ke4+ 1/2-1/2

[Event "BPB Limburg Open 2019 Group A"]
[Site "Maastricht, Netherlands"]
[Date "2019.06.09"]
[Round "4.8"]
[White "Harff, Marcel"]
[Black "Haast, Mark"]
[Result "1/2-1/2"]
[TimeControl "2h + 15 sec/move"]
[WhiteFideId "24621382"]
[BlackFideId "1021133"]
[WhiteElo "2372"]
[BlackElo "2392"]

1. c4 {[%clk 02:00:26]} {[%emt 00:00:02]} Nf6 {[%clk 01:58:37]} {[%emt
00:01:43]} 2. g3 {[%clk 02:00:28]} {[%emt 00:00:24]} e6 {[%clk 01:58:23]}
{[%emt 00:00:28]} 3. b3 {[%clk 02:00:14]} {[%emt 00:00:29]} d5 {[%clk
01:57:47]} {[%emt 00:00:51]} 4. Bb2 {[%clk 02:00:24]} {[%emt 00:00:06]} Be7
{[%clk 01:56:47]} {[%emt 00:01:15]} 5. Nf3 {[%clk 02:00:28]} {[%emt 00:00:11]}
O-O {[%clk 01:56:48]} {[%emt 00:00:15]} 6. Bg2 {[%clk 02:00:36]} {[%emt
00:00:06]} c5 {[%clk 01:56:34]} {[%emt 00:00:30]} 7. e3 {[%clk 02:00:34]}
{[%emt 00:00:17]} Nc6 {[%clk 01:56:12]} {[%emt 00:00:37]} 8. O-O {[%clk
01:58:38]} {[%emt 00:02:10]} Re8 {[%clk 01:52:58]} {[%emt 00:03:30]} 9. d4
{[%clk 01:56:10]} {[%emt 00:02:43]} cxd4 {[%clk 01:51:20]} {[%emt 00:01:54]} 10.
Nxd4 {[%clk 01:54:51]} {[%emt 00:01:34]} Nxd4 {[%clk 01:49:14]} {[%emt
00:02:21]} 11. Qxd4 {[%clk 01:54:58]} {[%emt 00:00:07]} dxc4 {[%clk 01:41:39]}
{[%emt 00:07:51]} 12. Qxc4 {[%clk 01:52:19]} {[%emt 00:02:54]} Bd7 {[%clk
01:41:02]} {[%emt 00:00:52]} 13. Rd1 {[%clk 01:36:09]} {[%emt 00:16:24]}
1/2-1/2

[Event "BPB Limburg Open 2019 Group A"]
[Site "Maastricht, Netherlands"]
[Date "2019.06.09"]
[Round "4.9"]
[White "Pieper, Dawid"]
[Black "Dambacher, Martijn"]
[Result "0-1"]
[TimeControl "2h + 15 sec/move"]
[WhiteFideId "4676106"]
[BlackFideId "1005030"]
[WhiteElo "2175"]
[BlackElo "2511"]

1. e4 {[%clk 02:00:28]} {[%emt 00:00:01]} c5 {[%clk 02:00:15]} {[%emt
00:00:15]} 2. Nf3 {[%clk 02:00:36]} {[%emt 00:00:07]} d6 {[%clk 02:00:17]}
{[%emt 00:00:13]} 3. Bb5+ {[%clk 02:00:45]} {[%emt 00:00:05]} Nd7 {[%clk
01:59:46]} {[%emt 00:00:47]} 4. d4 {[%clk 02:00:31]} {[%emt 00:00:29]} cxd4
{[%clk 01:59:22]} {[%emt 00:00:39]} 5. Qxd4 {[%clk 02:00:06]} {[%emt 00:00:39]}
a6 {[%clk 01:58:16]} {[%emt 00:01:21]} 6. Bxd7+ {[%clk 01:59:55]} {[%emt
00:00:26]} Bxd7 {[%clk 01:58:26]} {[%emt 00:00:06]} 7. Nc3 {[%clk 01:59:03]}
{[%emt 00:01:07]} e5 {[%clk 01:52:35]} {[%emt 00:06:06]} 8. Qd3 {[%clk
01:58:43]} {[%emt 00:00:35]} h6 {[%clk 01:52:41]} {[%emt 00:00:09]} 9. Be3
{[%clk 01:56:14]} {[%emt 00:02:43]} Nf6 {[%clk 01:51:20]} {[%emt 00:01:37]} 10.
a4 {[%clk 01:48:18]} {[%emt 00:08:12]} Be6 {[%clk 01:36:11]} {[%emt 00:15:24]}
11. a5 {[%clk 01:33:55]} {[%emt 00:14:38]} Be7 {[%clk 01:32:41]} {[%emt
00:03:45]} 12. O-O {[%clk 01:33:22]} {[%emt 00:00:48]} Rc8 {[%clk 01:22:39]}
{[%emt 00:10:17]} 13. Rfd1 {[%clk 01:25:38]} {[%emt 00:07:59]} O-O {[%clk
01:18:40]} {[%emt 00:04:14]} 14. Bb6 {[%clk 01:17:49]} {[%emt 00:08:04]} Qd7
{[%clk 01:16:03]} {[%emt 00:02:52]} 15. h3 {[%clk 01:17:57]} {[%emt 00:00:07]}
Qc6 {[%clk 01:10:18]} {[%emt 00:06:01]} 16. Nh2 {[%clk 01:08:55]} {[%emt
00:09:16]} Nd7 {[%clk 00:50:51]} {[%emt 00:19:43]} 17. Be3 {[%clk 01:04:52]}
{[%emt 00:04:17]} f5 {[%clk 00:49:33]} {[%emt 00:01:33]} 18. f3 {[%clk
00:55:35]} {[%emt 00:09:33]} fxe4 {[%clk 00:39:26]} {[%emt 00:10:21]} 19. Qxe4
{[%clk 00:46:39]} {[%emt 00:09:11]} Nf6 {[%clk 00:37:29]} {[%emt 00:02:12]} 20.
Qg6 {[%clk 00:43:39]} {[%emt 00:03:15]} Bf7 {[%clk 00:30:57]} {[%emt 00:06:48]}
21. Qg3 {[%clk 00:43:02]} {[%emt 00:00:51]} Nh5 {[%clk 00:26:58]} {[%emt
00:04:14]} 22. Qg4 {[%clk 00:41:00]} {[%emt 00:02:16]} Kh7 {[%clk 00:26:49]}
{[%emt 00:00:24]} 23. Ra4 {[%clk 00:27:49]} {[%emt 00:13:26]} Nf6 {[%clk
00:24:38]} {[%emt 00:02:26]} 24. Qg3 {[%clk 00:27:03]} {[%emt 00:01:01]} Nh5
{[%clk 00:21:42]} {[%emt 00:03:10]} 25. Qg4 {[%clk 00:26:32]} {[%emt 00:00:46]}
d5 {[%clk 00:20:58]} {[%emt 00:01:00]} 26. Qf5+ {[%clk 00:23:45]} {[%emt
00:03:01]} Bg6 {[%clk 00:20:48]} {[%emt 00:00:24]} 27. Qxe5 {[%clk 00:23:55]}
{[%emt 00:00:06]} Bf6 {[%clk 00:20:03]} {[%emt 00:01:00]} 28. Qxd5 {[%clk
00:22:58]} {[%emt 00:01:13]} Bxc3 {[%clk 00:19:55]} {[%emt 00:00:23]} 29. Qxc6
{[%clk 00:22:17]} {[%emt 00:00:56]} Rxc6 {[%clk 00:19:59]} {[%emt 00:00:11]} 30.
bxc3 {[%clk 00:17:53]} {[%emt 00:04:40]} Bxc2 {[%clk 00:20:07]} {[%emt
00:00:06]} 31. Rda1 {[%clk 00:16:42]} {[%emt 00:01:26]} Bxa4 {[%clk 00:19:57]}
{[%emt 00:00:25]} 32. Rxa4 {[%clk 00:16:55]} {[%emt 00:00:02]} Rxc3 {[%clk
00:19:36]} {[%emt 00:00:36]} 33. Ng4 {[%clk 00:17:05]} {[%emt 00:00:05]} Nf6
{[%clk 00:17:42]} {[%emt 00:02:08]} 34. Bd4 {[%clk 00:14:26]} {[%emt 00:02:53]}
Rc1+ {[%clk 00:17:32]} {[%emt 00:00:25]} 35. Kf2 {[%clk 00:14:12]} {[%emt
00:00:30]} Ne4+ {[%clk 00:15:34]} {[%emt 00:02:13]} 36. Ke3 {[%clk 00:13:43]}
{[%emt 00:00:44]} Nc3 {[%clk 00:15:32]} {[%emt 00:00:17]} 37. Ra3 {[%clk
00:11:02]} {[%emt 00:02:55]} Nb5 {[%clk 00:14:24]} {[%emt 00:01:23]} 38. Rd3
{[%clk 00:11:07]} {[%emt 00:00:11]} Nxd4 {[%clk 00:12:24]} {[%emt 00:02:14]} 39.
Rxd4 {[%clk 00:11:17]} {[%emt 00:00:05]} Rc2 {[%clk 00:11:39]} {[%emt
00:01:01]} 40. Rd7 {[%clk 00:11:08]} {[%emt 00:00:24]} Rxg2 {[%clk 00:11:37]}
{[%emt 00:00:16]} 41. Rxb7 {[%clk 00:10:55]} {[%emt 00:00:28]} Ra2 {[%clk
00:11:46]} {[%emt 00:00:06]} 42. f4 {[%clk 00:09:40]} {[%emt 00:01:30]} Rxa5
{[%clk 00:11:37]} {[%emt 00:00:24]} 43. Kd4 {[%emt 00:00:54]} 0-1

[Event "BPB Limburg Open 2019 Group A"]
[Site "Maastricht, Netherlands"]
[Date "2019.06.09"]
[Round "4.10"]
[White "Sadzikowski, Daniel"]
[Black "Verhoef, Pieter"]
[Result "1-0"]
[TimeControl "2h + 15 sec/move"]
[WhiteFideId "1132253"]
[BlackFideId "1047264"]
[WhiteElo "2510"]
[BlackElo "2136"]

1. c4 {[%clk 02:00:25]} {[%emt 00:00:04]} c5 {[%clk 02:00:24]} {[%emt
00:00:06]} 2. Nf3 {[%clk 02:00:27]} {[%emt 00:00:13]} g6 {[%clk 01:59:31]}
{[%emt 00:01:08]} 3. e4 {[%clk 02:00:18]} {[%emt 00:00:24]} Bg7 {[%clk
01:59:24]} {[%emt 00:00:22]} 4. d4 {[%clk 02:00:25]} {[%emt 00:00:07]} cxd4
{[%clk 01:58:43]} {[%emt 00:00:56]} 5. Nxd4 {[%clk 02:00:38]} {[%emt 00:00:03]}
Nf6 {[%clk 01:58:16]} {[%emt 00:00:42]} 6. Nc3 {[%clk 02:00:03]} {[%emt
00:00:49]} d6 {[%clk 01:57:35]} {[%emt 00:00:57]} 7. Be2 {[%clk 01:59:53]}
{[%emt 00:00:25]} O-O {[%clk 01:53:09]} {[%emt 00:04:40]} 8. O-O {[%clk
01:59:36]} {[%emt 00:00:32]} Nc6 {[%clk 01:53:03]} {[%emt 00:00:22]} 9. Be3
{[%clk 01:59:43]} {[%emt 00:00:07]} Nxd4 {[%clk 01:50:29]} {[%emt 00:02:49]} 10.
Bxd4 {[%clk 01:59:55]} {[%emt 00:00:03]} a5 {[%clk 01:50:36]} {[%emt 00:00:09]}
11. Rc1 {[%clk 01:43:25]} {[%emt 00:16:45]} Bd7 {[%clk 01:49:07]} {[%emt
00:01:41]} 12. b3 {[%clk 01:39:51]} {[%emt 00:03:51]} Bc6 {[%clk 01:38:40]}
{[%emt 00:10:43]} 13. f3 {[%clk 01:39:27]} {[%emt 00:00:38]} Nd7 {[%clk
01:38:48]} {[%emt 00:00:07]} 14. Be3 {[%clk 01:39:31]} {[%emt 00:00:10]} Nc5
{[%clk 01:36:52]} {[%emt 00:02:12]} 15. Qd2 {[%clk 01:39:41]} {[%emt 00:00:05]}
Qc7 {[%clk 01:30:01]} {[%emt 00:07:06]} 16. Rc2 {[%clk 01:37:42]} {[%emt
00:02:13]} b6 {[%clk 01:29:32]} {[%emt 00:00:44]} 17. Rb1 {[%clk 01:36:43]}
{[%emt 00:01:14]} Qb7 {[%clk 01:26:05]} {[%emt 00:03:42]} 18. Bf1 {[%clk
01:33:51]} {[%emt 00:03:06]} Rfd8 {[%clk 01:24:41]} {[%emt 00:01:40]} 19. a3
{[%clk 01:27:55]} {[%emt 00:06:11]} e6 {[%clk 01:18:42]} {[%emt 00:06:14]} 20.
Qf2 {[%clk 01:25:21]} {[%emt 00:02:49]} d5 {[%clk 01:16:45]} {[%emt 00:02:13]}
21. cxd5 {[%clk 01:23:24]} {[%emt 00:02:11]} exd5 {[%clk 01:16:50]} {[%emt
00:00:10]} 22. exd5 {[%clk 01:21:10]} {[%emt 00:02:29]} Bxd5 {[%clk 01:16:57]}
{[%emt 00:00:08]} 23. b4 {[%clk 01:19:24]} {[%emt 00:02:01]} axb4 {[%clk
01:11:42]} {[%emt 00:05:29]} 24. axb4 {[%clk 01:19:21]} {[%emt 00:00:18]} Nd7
{[%clk 01:11:49]} {[%emt 00:00:09]} 25. Nxd5 {[%clk 01:10:52]} {[%emt
00:08:44]} Qxd5 {[%clk 01:11:56]} {[%emt 00:00:07]} 26. Rd2 {[%clk 01:10:21]}
{[%emt 00:00:46]} Qc6 {[%clk 01:09:46]} {[%emt 00:02:26]} 27. Rbd1 {[%clk
01:09:11]} {[%emt 00:01:24]} Bf6 {[%clk 01:01:50]} {[%emt 00:08:11]} 28. Rd6
{[%clk 01:03:44]} {[%emt 00:05:42]} Qc7 {[%clk 00:55:29]} {[%emt 00:06:37]} 29.
Qd2 {[%clk 00:53:01]} {[%emt 00:10:58]} Ne5 {[%clk 00:49:17]} {[%emt 00:06:27]}
30. Bxb6 {[%clk 00:51:53]} {[%emt 00:01:23]} Qxd6 {[%clk 00:49:24]} {[%emt
00:00:07]} 31. Qxd6 {[%clk 00:52:02]} {[%emt 00:00:07]} Rxd6 {[%clk 00:49:34]}
{[%emt 00:00:06]} 32. Rxd6 {[%clk 00:52:12]} {[%emt 00:00:05]} Be7 {[%clk
00:49:44]} {[%emt 00:00:06]} 33. Rd5 {[%clk 00:50:59]} {[%emt 00:01:27]} Nc6
{[%clk 00:48:34]} {[%emt 00:01:26]} 34. b5 {[%clk 00:50:59]} {[%emt 00:00:14]}
Bd8 {[%clk 00:48:43]} {[%emt 00:00:07]} 35. Bf2 {[%clk 00:49:48]} {[%emt
00:01:25]} Ne7 {[%clk 00:46:30]} {[%emt 00:02:29]} 36. Rd7 {[%clk 00:47:17]}
{[%emt 00:02:45]} Rb8 {[%clk 00:45:58]} {[%emt 00:00:48]} 37. Ba7 {[%clk
00:43:32]} {[%emt 00:03:58]} Ra8 {[%clk 00:45:08]} {[%emt 00:01:07]} 38. b6
{[%clk 00:42:24]} {[%emt 00:01:23]} Kg7 {[%clk 00:44:52]} {[%emt 00:00:31]} 39.
Bb5 {[%clk 00:39:53]} {[%emt 00:02:46]} 1-0

[Event "BPB Limburg Open 2019 Group A"]
[Site "Maastricht, Netherlands"]
[Date "2019.06.09"]
[Round "4.11"]
[White "Asadzade, Idris"]
[Black "Admiraal, Miguoel"]
[Result "0-1"]
[TimeControl "2h + 15 sec/move"]
[WhiteFideId "12997285"]
[BlackFideId "1019716"]
[WhiteElo "2125"]
[BlackElo "2507"]

1. d4 {[%clk 02:00:28]} d5 {[%clk 01:41:29]} {[%emt 00:19:01]} 2. c4 {[%clk
02:00:22]} {[%emt 00:00:20]} c6 {[%clk 01:41:26]} {[%emt 00:00:19]} 3. Nc3
{[%clk 02:00:19]} {[%emt 00:00:19]} Nf6 {[%clk 01:41:24]} {[%emt 00:00:16]} 4.
Nf3 {[%clk 02:00:05]} {[%emt 00:00:29]} dxc4 {[%clk 01:41:09]} {[%emt
00:00:31]} 5. a4 {[%clk 01:59:36]} {[%emt 00:00:45]} Bf5 {[%clk 01:41:12]}
{[%emt 00:00:11]} 6. Ne5 {[%clk 01:59:16]} {[%emt 00:00:35]} Nbd7 {[%clk
01:41:22]} {[%emt 00:00:05]} 7. Nxc4 {[%clk 01:59:09]} {[%emt 00:00:22]} Nb6
{[%clk 01:41:28]} {[%emt 00:00:08]} 8. Ne5 {[%clk 01:58:46]} {[%emt 00:00:39]}
a5 {[%clk 01:41:39]} {[%emt 00:00:04]} 9. f3 {[%clk 01:56:51]} {[%emt
00:02:10]} Nfd7 {[%clk 01:41:48]} {[%emt 00:00:05]} 10. Nxd7 {[%clk 01:49:42]}
{[%emt 00:07:25]} Nxd7 {[%clk 01:39:12]} {[%emt 00:02:50]} 11. e4 {[%clk
01:49:48]} {[%emt 00:00:10]} Bg6 {[%clk 01:39:23]} {[%emt 00:00:03]} 12. Qb3
{[%clk 01:47:31]} {[%emt 00:02:33]} e5 {[%clk 01:28:47]} {[%emt 00:10:51]} 13.
dxe5 {[%clk 01:43:04]} {[%emt 00:04:43]} Bb4 {[%clk 01:28:53]} {[%emt
00:00:08]} 14. Be3 {[%clk 01:36:08]} {[%emt 00:07:11]} Nxe5 {[%clk 01:25:10]}
{[%emt 00:03:58]} 15. Bc4 {[%clk 01:33:01]} {[%emt 00:03:21]} Qh4+ {[%clk
01:09:49]} {[%emt 00:15:36]} 16. Bf2 {[%clk 01:16:32]} {[%emt 00:16:44]} Qg5
{[%clk 01:08:56]} {[%emt 00:01:08]} 17. Bf1 {[%clk 01:13:55]} {[%emt 00:02:53]}
Rd8 {[%clk 01:04:41]} {[%emt 00:04:30]} 18. Qc2 {[%clk 01:07:32]} {[%emt
00:06:38]} h5 {[%clk 00:58:35]} {[%emt 00:06:20]} 19. h4 {[%clk 01:04:42]}
{[%emt 00:03:05]} Qf4 {[%clk 00:57:53]} {[%emt 00:00:56]} 20. Qc1 {[%clk
01:03:25]} {[%emt 00:01:34]} Qxc1+ {[%clk 00:48:37]} {[%emt 00:09:31]} 21. Rxc1
{[%clk 01:03:35]} {[%emt 00:00:05]} f6 {[%clk 00:48:49]} {[%emt 00:00:03]} 22.
Be3 {[%clk 00:57:37]} {[%emt 00:06:13]} Bf7 {[%clk 00:47:17]} {[%emt 00:01:46]}
23. Kf2 {[%clk 00:57:04]} {[%emt 00:00:49]} Bb3 {[%clk 00:47:05]} {[%emt
00:00:27]} 24. Ra1 {[%clk 00:51:57]} {[%emt 00:05:21]} Kf7 {[%clk 00:40:35]}
{[%emt 00:06:44]} 25. Be2 {[%clk 00:48:08]} {[%emt 00:04:05]} Nd7 {[%clk
00:28:32]} {[%emt 00:12:18]} 26. Na2 {[%clk 00:45:16]} {[%emt 00:03:06]} Bc5
{[%clk 00:28:21]} {[%emt 00:00:26]} 27. Nc1 {[%clk 00:41:46]} {[%emt 00:03:46]}
Be6 {[%clk 00:27:17]} {[%emt 00:01:18]} 28. Nd3 {[%clk 00:41:06]} {[%emt
00:00:54]} Bxe3+ {[%clk 00:27:22]} {[%emt 00:00:10]} 29. Kxe3 {[%clk 00:41:20]}
{[%emt 00:00:02]} Ke7 {[%clk 00:24:24]} {[%emt 00:03:12]} 30. Rhd1 {[%clk
00:39:20]} {[%emt 00:02:15]} Bc4 {[%clk 00:19:20]} {[%emt 00:05:19]} 31. Nf4
{[%clk 00:38:02]} {[%emt 00:01:34]} Bf7 {[%clk 00:19:28]} {[%emt 00:00:06]} 32.
Nd3 {[%clk 00:34:52]} {[%emt 00:03:26]} Ra8 {[%clk 00:19:02]} {[%emt 00:00:41]}
33. Rdc1 {[%clk 00:33:52]} {[%emt 00:01:16]} Ra6 {[%clk 00:16:25]} {[%emt
00:02:52]} 34. Ra3 {[%clk 00:31:51]} {[%emt 00:02:15]} Rb6 {[%clk 00:16:27]}
{[%emt 00:00:12]} 35. Rcc3 {[%clk 00:29:53]} {[%emt 00:02:14]} Rd8 {[%clk
00:11:04]} {[%emt 00:05:38]} 36. f4 {[%clk 00:24:56]} {[%emt 00:05:11]} Kd6
{[%clk 00:08:56]} {[%emt 00:02:23]} 37. b3 {[%clk 00:21:28]} {[%emt 00:03:44]}
Re8 {[%clk 00:09:01]} {[%emt 00:00:10]} 38. Bf3 {[%clk 00:18:46]} {[%emt
00:02:57]} Bg6 {[%clk 00:06:02]} {[%emt 00:03:14]} 39. Rc4 {[%clk 00:16:50]}
{[%emt 00:02:11]} Bf7 {[%clk 00:06:06]} {[%emt 00:00:10]} 40. Rc3 {[%clk
00:16:30]} {[%emt 00:00:35]} Bd5 {[%clk 00:05:21]} {[%emt 00:01:00]} 41. Kd4
{[%clk 00:14:09]} {[%emt 00:02:36]} c5+ {[%clk 00:04:26]} {[%emt 00:01:10]} 42.
Ke3 {[%clk 00:14:06]} {[%emt 00:00:19]} Bxe4 {[%clk 00:04:01]} {[%emt
00:00:40]} 43. Bxe4 {[%clk 00:14:19]} {[%emt 00:00:02]} f5 {[%clk 00:04:15]} 44.
Rc4 {[%clk 00:13:45]} {[%emt 00:00:51]} fxe4 {[%clk 00:03:16]} {[%emt
00:01:14]} 45. Rxe4 {[%clk 00:13:55]} {[%emt 00:00:05]} Rxe4+ {[%clk 00:03:03]}
{[%emt 00:00:28]} 46. Kxe4 {[%clk 00:14:09]} {[%emt 00:00:01]} Ke6 {[%clk
00:02:27]} {[%emt 00:00:51]} 47. f5+ {[%clk 00:12:23]} {[%emt 00:02:01]} Kd6
{[%clk 00:02:41]} 48. Nb2 {[%clk 00:12:13]} {[%emt 00:00:25]} Nf6+ {[%clk
00:02:54]} {[%emt 00:00:02]} 49. Kf4 {[%clk 00:12:16]} {[%emt 00:00:13]} Rb4+
{[%clk 00:01:07]} {[%emt 00:02:02]} 50. Nc4+ {[%clk 00:12:27]} {[%emt
00:00:04]} Ke7 {[%clk 00:01:09]} {[%emt 00:00:13]} 51. Kg5 {[%clk 00:11:16]}
{[%emt 00:01:26]} Kf8 {[%clk 00:00:50]} {[%emt 00:00:34]} 52. Kf4 {[%clk
00:10:57]} {[%emt 00:00:34]} Ke7 {[%clk 00:00:40]} {[%emt 00:00:24]} 53. Kg5
{[%clk 00:10:52]} {[%emt 00:00:21]} Kf7 {[%clk 00:00:32]} {[%emt 00:00:23]} 54.
Ne5+ {[%clk 00:10:21]} {[%emt 00:00:46]} Kf8 {[%clk 00:00:24]} {[%emt
00:00:20]} 55. Nc4 {[%clk 00:10:19]} {[%emt 00:00:20]} Nd5 {[%clk 00:00:17]}
{[%emt 00:00:22]} 56. Kxh5 {[%clk 00:09:45]} {[%emt 00:00:49]} Nf4+ {[%clk
00:00:27]} {[%emt 00:00:05]} 57. Kg4 {[%clk 00:09:24]} {[%emt 00:00:36]} Nxg2
{[%clk 00:00:30]} {[%emt 00:00:12]} 58. Kg3 {[%clk 00:09:24]} {[%emt 00:00:16]}
Ne1 {[%clk 00:00:42]} {[%emt 00:00:03]} 59. Nxa5 {[%clk 00:09:12]} {[%emt
00:00:27]} Nc2 {[%clk 00:00:56]} 60. Ra2 {[%clk 00:09:01]} {[%emt 00:00:25]}
Nd4 {[%clk 00:01:10]} 61. Rf2 {[%clk 00:08:11]} {[%emt 00:01:05]} b6 {[%clk
00:01:25]} 62. Nc4 {[%clk 00:07:46]} {[%emt 00:00:40]} Nxb3 {[%clk 00:01:38]}
63. Rb2 {[%clk 00:07:26]} {[%emt 00:00:35]} Ke7 {[%clk 00:00:22]} {[%emt
00:01:32]} 64. Ne5 {[%clk 00:06:58]} {[%emt 00:00:44]} Na5 {[%clk 00:00:35]}
{[%emt 00:00:01]} 65. Nd3 {[%clk 00:05:35]} {[%emt 00:01:38]} Rxa4 {[%clk
00:00:30]} {[%emt 00:00:21]} 66. Nf4 {[%clk 00:03:23]} {[%emt 00:02:26]} Nc4
{[%clk 00:00:44]} {[%emt 00:00:01]} 67. Rb3 {[%clk 00:03:08]} {[%emt 00:00:31]}
Kf6 {[%clk 00:00:33]} {[%emt 00:00:25]} 68. Nd5+ {[%clk 00:03:12]} {[%emt
00:00:11]} Kxf5 {[%clk 00:00:44]} {[%emt 00:00:04]} 69. Nxb6 {[%clk 00:03:12]}
{[%emt 00:00:15]} Ra3 {[%clk 00:00:18]} {[%emt 00:00:41]} 70. Rxa3 {[%clk
00:03:06]} {[%emt 00:00:22]} Nxa3 {[%clk 00:00:32]} 71. Kf3 {[%clk 00:02:59]}
{[%emt 00:00:22]} Nb5 {[%clk 00:00:26]} {[%emt 00:00:21]} 72. Nc4 {[%clk
00:02:27]} {[%emt 00:00:47]} Nd4+ {[%clk 00:00:26]} {[%emt 00:00:14]} 73. Ke3
{[%clk 00:02:34]} {[%emt 00:00:09]} Kg4 {[%clk 00:00:19]} {[%emt 00:00:22]} 74.
Ne5+ {[%clk 00:02:45]} {[%emt 00:00:03]} Kxh4 {[%clk 00:00:29]} {[%emt
00:00:05]} 75. Nd7 {[%clk 00:02:56]} {[%emt 00:00:05]} Ne6 {[%clk 00:00:20]}
{[%emt 00:00:23]} 76. Ke4 {[%clk 00:02:46]} {[%emt 00:00:25]} g5 {[%clk
00:00:31]} {[%emt 00:00:04]} 77. Ne5 {[%clk 00:02:37]} {[%emt 00:00:24]} g4
{[%clk 00:00:33]} {[%emt 00:00:13]} 78. Kd5 {[%clk 00:02:17]} {[%emt 00:00:36]}
g3 {[%clk 00:00:38]} {[%emt 00:00:09]} 79. Nf3+ {[%clk 00:01:59]} {[%emt
00:00:33]} Kg4 {[%clk 00:00:32]} {[%emt 00:00:19]} 80. Ng1 {[%clk 00:02:10]}
{[%emt 00:00:06]} g2 {[%clk 00:00:19]} {[%emt 00:00:28]} 81. Kd4 {[%emt
00:01:06]} 0-1